bitfinex/quotes_BTCUSD_20250208
["timestamp","ask_amount","ask_price","bid_price","bid_amount"]
[1739028250429,0.49542806,96134.0,96133.0,0.00022428]
[1739028250972,0.50042806,96134.0,96133.0,0.00022428]
[1739028251243,0.50342806,96134.0,96133.0,0.00022428]
[1739028254041,0.60593171,96134.0,96133.0,0.00022428]
[1739028256922,0.75593171,96134.0,96133.0,0.00022428]
[1739028257749,0.78711204,96134.0,96133.0,0.00022428]
[1739028261768,0.68460839,96134.0,96133.0,0.00022428]
[1739028262803,0.65342806,96134.0,96133.0,0.00022428]
[1739028266152,0.68459408,96134.0,96133.0,0.00022428]
[1739028267611,0.65342806,96134.0,96133.0,0.00022428]
[1739028268732,0.65342806,96134.0,96133.0,0.07852428]
[1739028269394,0.34739606,96134.0,96133.0,0.23455728]
[1739028269804,0.34739606,96134.0,96133.0,0.26518243]
[1739028270833,0.32788649,96134.0,96133.0,0.26518243]
[1739028279298,0.32788649,96134.0,96133.0,0.2643055]
[1739028282280,0.32788649,96134.0,96133.0,0.1082725]
[1739028284593,0.32788649,96134.0,96133.0,0.1083793]
[1739028285692,0.48391849,96134.0,96133.0,0.03073195]
[1739028286094,0.48391849,96134.0,96133.0,0.0001068]
[1739028287703,0.48391849,96134.0,96133.0,0.03069593]
[1739028289583,0.48391849,96134.0,96133.0,0.0001068]
[1739028290184,0.63391849,96134.0,96133.0,0.0001068]
[1739028295676,0.63414277,96134.0,96133.0,0.0001068]
[1739028308566,0.32811077,96134.0,96133.0,0.2389398]
[1739028308766,0.32811077,96134.0,96133.0,0.34144345]
[1739028309056,0.32811077,96134.0,96133.0,0.37478895]
[1739028309811,0.32311077,96134.0,96133.0,0.37478895]
[1739028310409,0.32011077,96134.0,96133.0,0.37478895]
[1739028310612,0.32111077,96134.0,96133.0,0.37578895]
[1739028311653,0.32211077,96134.0,96133.0,0.37578895]
[1739028320160,0.32111077,96134.0,96133.0,0.37478895]
[1739028320335,0.32211077,96134.0,96133.0,0.37578895]
[1739028320526,0.32211077,96134.0,96133.0,0.37478895]
[1739028320862,0.32211077,96134.0,96133.0,0.37578895]
[1739028321263,0.32311077,96134.0,96133.0,0.37578895]
[1739028321719,0.32211077,96134.0,96133.0,0.37578895]
[1739028322652,0.32311077,96134.0,96133.0,0.37578895]
[1739028322878,0.32311077,96134.0,96133.0,0.21975595]
[1739028323459,0.32311077,96134.0,96133.0,0.37578895]
[1739028323643,0.32111077,96134.0,96133.0,0.37478895]
[1739028323840,0.32111077,96134.0,96133.0,0.37578895]
[1739028324308,0.32211077,96134.0,96133.0,0.37578895]
[1739028330388,0.32111077,96134.0,96133.0,0.37578895]
[1739028330896,0.32111077,96134.0,96133.0,0.37478895]
[1739028331615,0.32211077,96134.0,96133.0,0.37578895]
[1739028334841,0.32211077,96134.0,96133.0,0.37628495]
[1739028343626,0.32211077,96134.0,96133.0,0.22025195]
[1739028344421,0.32211077,96134.0,96133.0,0.37628495]
[1739028346348,0.32211077,96134.0,96133.0,0.22025195]
[1739028347178,0.32211077,96134.0,96133.0,0.37628495]
[1739028350454,0.32211077,96134.0,96133.0,0.22025195]
[1739028350896,0.32211077,96134.0,96133.0,0.37628495]
[1739028353973,0.32211077,96134.0,96133.0,0.13745195]
[1739028356327,0.32111077,96134.0,96133.0,0.13645195]
[1739028356503,0.32011077,96134.0,96133.0,0.13645195]
[1739028356706,0.32211077,96134.0,96133.0,0.13745195]
[1739028359024,0.33280462,96134.0,96133.0,0.13745195]
[1739028359930,0.48883662,96134.0,96133.0,0.13745195]
[1739028360131,0.48883662,96134.0,96133.0,0.10410645]
[1739028360336,0.48883662,96134.0,96133.0,0.13434893]
[1739028360970,0.33280462,96134.0,96133.0,0.13434893]
[1739028361786,0.48883662,96134.0,96133.0,0.03184528]
[1739028362988,0.32211077,96134.0,96133.0,0.03184528]
[1739028363474,0.32211077,96134.0,96133.0,0.0016028]
[1739028363615,0.47814277,96134.0,96133.0,0.03184528]
[1739028366217,0.32111077,96134.0,96133.0,0.03184528]
[1739028366519,0.32111077,96134.0,96133.0,0.03084528]
[1739028366885,0.32211077,96134.0,96133.0,0.03184528]
[1739028368033,0.32211077,96134.0,96133.0,0.13434893]
[1739028369004,0.32211077,96134.0,96133.0,0.29038193]
[1739028374453,0.32211077,96134.0,96133.0,0.13434893]
[1739028375933,0.32211077,96134.0,96133.0,0.10410645]
[1739028376133,0.32211077,96134.0,96133.0,0.13435077]
[1739028382803,0.32111077,96134.0,96133.0,0.13435077]
[1739028382986,0.32211077,96134.0,96133.0,0.13435077]
[1739028383590,0.32111077,96134.0,96133.0,0.13435077]
[1739028384931,0.32211077,96134.0,96133.0,0.13435077]
[1739028387696,0.32111077,96134.0,96133.0,0.13335077]
[1739028387894,0.32211077,96134.0,96133.0,0.13435077]
[1739028388049,0.32111077,96134.0,96133.0,0.13435077]
[1739028388249,0.32211077,96134.0,96133.0,0.13435077]
[1739028390355,0.47814277,96134.0,96133.0,0.13435077]
[1739028390586,0.32211077,96134.0,96133.0,0.13435077]
[1739028396649,0.32211077,96134.0,96133.0,0.03184712]
[1739028396854,0.47814277,96134.0,96133.0,0.03184712]
[1739028397372,0.32211077,96134.0,96133.0,0.03184712]
[1739028405808,0.34162791,96134.0,96133.0,0.03184712]
[1739028407940,0.34162791,96134.0,96133.0,0.0016028]
[1739028408083,0.34162791,96134.0,96133.0,0.03186965]
[1739028411271,0.49765991,96134.0,96133.0,0.03186965]
[1739028415419,0.49765991,96134.0,96133.0,0.0016028]
[1739028416805,0.34162791,96134.0,96133.0,0.0016028]
[1739028416939,0.34162791,96134.0,96133.0,0.03186932]
[1739028417137,0.34162791,96134.0,96133.0,0.0016028]
[1739028417549,0.34162791,96134.0,96133.0,0.03186932]
[1739028418413,0.49765991,96134.0,96133.0,0.03186932]
[1739028419178,0.49765991,96134.0,96133.0,0.0016028]
[1739028419388,0.49765991,96134.0,96133.0,0.03186932]
[1739028419568,0.49765991,96134.0,96133.0,0.0016028]
[1739028419761,0.49765991,96134.0,96133.0,0.03186932]
[1739028420444,0.34162791,96134.0,96133.0,0.0016028]
[1739028420700,0.34162791,96134.0,96133.0,0.03186932]
[1739028421612,0.49765991,96134.0,96133.0,0.0016028]
[1739028428163,0.49765991,96134.0,96133.0,0.0006028]
[1739028428164,0.49565991,96134.0,96133.0,0.0006028]
[1739028428523,0.49765991,96134.0,96133.0,0.0006028]
[1739028429124,0.49565991,96134.0,96133.0,0.0006028]
[1739028429351,0.50465991,96134.0,96133.0,0.0006028]
[1739028429936,0.81956356,96134.0,96133.0,0.0006028]
[1739028430331,1.03410106,96134.0,96133.0,0.0006028]
[1739028430523,1.00195165,96134.0,96133.0,0.0006028]
[1739028430684,0.96866721,96134.0,96133.0,0.0006028]
[1739028430860,0.95966721,96134.0,96133.0,0.0006028]
[1739028431294,0.96266721,96134.0,96133.0,0.0006028]
[1739028431498,0.98387852,96134.0,96133.0,0.0006028]
[1739028432650,0.99287852,96134.0,96133.0,0.0006028]
[1739028433203,2.32718352,96134.0,96133.0,0.0006028]
[1739028433400,2.35062996,96134.0,96133.0,0.0006028]
[1739028433622,0.306035,96132.0,96131.0,0.00042407]
[1739028433833,1.6973243,96132.0,96131.0,0.00042407]
[1739028434172,0.15,96130.0,96098.0,0.07147263]
[1739028434320,0.156077,96106.0,96099.0,0.10250365]
[1739028434528,0.31988649,96105.0,96099.0,0.10250365]
[1739028434909,0.31988649,96105.0,96100.0,0.03029191]
[1739028435536,0.01951714,96104.0,96100.0,0.03074606]
[1739028436878,0.01951714,96103.0,96100.0,0.03185286]
[1739028437705,0.01951714,96103.0,96100.0,0.03085286]
[1739028438053,0.02151714,96103.0,96100.0,0.03185286]
[1739028438256,0.002,96103.0,96100.0,0.03185286]
[1739028439404,0.002,96103.0,96100.0,0.00156095]
[1739028439732,0.47597149,96102.0,96101.0,0.03029185]
[1739028439859,0.33445317,96102.0,96100.0,0.00156095]
[1739028440075,0.47597149,96101.0,96100.0,0.00156095]
[1739028440876,0.49548863,96101.0,96100.0,0.00156095]
[1739028441334,0.49548863,96101.0,96100.0,0.00056095]
[1739028442031,0.49648863,96101.0,96100.0,0.00056095]
[1739028442234,0.59899228,96101.0,96100.0,0.00056095]
[1739028442627,0.59899228,96101.0,96100.0,0.00156095]
[1739028443620,0.59899228,96101.0,96100.0,0.00056095]
[1739028443819,0.59999228,96101.0,96100.0,0.00156095]
[1739028445405,0.74999228,96101.0,96100.0,0.00156095]
[1739028446436,0.79539228,96101.0,96100.0,0.00156095]
[1739028446640,0.79439228,96101.0,96100.0,0.00056095]
[1739028446939,0.80139228,96101.0,96100.0,0.00056095]
[1739028447323,0.79339228,96101.0,96100.0,0.00056095]
[1739028447528,0.80139228,96101.0,96100.0,0.00056095]
[1739028447731,0.81039228,96101.0,96100.0,0.00056095]
[1739028448150,0.80139228,96101.0,96100.0,0.00056095]
[1739028448353,0.90389593,96101.0,96100.0,0.00056095]
[1739028448581,1.03892978,96101.0,96100.0,0.00056095]
[1739028449353,1.03092978,96101.0,96100.0,0.00056095]
[1739028449593,1.03992978,96101.0,96100.0,0.00056095]
[1739028450748,1.04892978,96101.0,96100.0,0.00056095]
[1739028451110,1.03992978,96101.0,96100.0,0.00056095]
[1739028452214,1.04892978,96101.0,96100.0,0.00056095]
[1739028453506,1.02941264,96101.0,96100.0,0.00056095]
[1739028456866,1.02941264,96101.0,96091.0,0.00016001]
[1739028456867,0.15,96096.0,96091.0,0.00016001]
[1739028457069,0.3061,96092.0,96091.0,0.00027798]
[1739028457268,0.33938444,96092.0,96091.0,0.00027798]
[1739028457470,0.44188809,96092.0,96091.0,0.00027798]
[1739028457694,0.30611,96086.0,96085.0,0.00022428]
[1739028457900,0.83852581,96086.0,96085.0,0.00036046]
[1739028458143,0.90395966,96086.0,96085.0,0.00036046]
[1739028458334,0.96455966,96086.0,96085.0,0.00036046]
[1739028458496,1.01085966,96086.0,96085.0,0.00036046]
[1739028460017,2.41455966,96086.0,96085.0,0.00036046]
[1739028460217,2.42507476,96086.0,96085.0,0.00036046]
[1739028460494,2.44007476,96086.0,96085.0,0.00036046]
[1739028461466,0.306129,96074.0,96057.0,0.0814]
[1739028461639,0.4740665,96074.0,96073.0,0.20806943]
[1739028462252,0.4740665,96074.0,96073.0,0.20817623]
[1739028463247,0.79367501,96074.0,96073.0,0.20817623]
[1739028463443,0.80267501,96074.0,96073.0,0.17777854]
[1739028463991,0.91417866,96074.0,96073.0,0.17777854]
[1739028465425,0.92486456,96074.0,96073.0,0.17777854]
[1739028467168,0.91586456,96074.0,96073.0,0.17777854]
[1739028467345,0.92486456,96074.0,96073.0,0.17777854]
[1739028467650,0.91586456,96074.0,96073.0,0.17777854]
[1739028467848,0.92486456,96074.0,96073.0,0.17777854]
[1739028468458,0.94561782,96074.0,96073.0,0.17777854]
[1739028468764,0.96504589,96074.0,96073.0,0.17777854]
[1739028471699,0.96504589,96074.0,96073.0,0.13984854]
[1739028471904,0.96504589,96074.0,96073.0,0.13084854]
[1739028473571,0.93289648,96074.0,96073.0,0.13084854]
[1739028474176,0.86149926,96074.0,96073.0,0.13084854]
[1739028475407,0.306139,96068.0,96057.0,0.0814]
[1739028475607,0.40864265,96068.0,96067.0,0.000176]
[1739028477146,0.009,96068.0,96067.0,0.048776]
[1739028477622,0.18456707,96068.0,96067.0,0.124376]
[1739028478029,0.18456707,96068.0,96067.0,0.15514709]
[1739028478232,0.02842807,96068.0,96067.0,0.15514709]
[1739028478442,0.03242807,96068.0,96067.0,0.15514709]
[1739028478851,0.17556707,96068.0,96067.0,0.15514709]
[1739028478997,0.21070729,96068.0,96067.0,0.15514709]
[1739028479222,0.21970729,96068.0,96067.0,0.15514709]
[1739028479687,0.21970729,96068.0,96067.0,0.124376]
[1739028479888,0.05456829,96068.0,96067.0,0.124376]
[1739028480175,0.21670729,96068.0,96067.0,0.15514709]
[1739028480415,0.05656829,96068.0,96067.0,0.15514709]
[1739028480632,0.02842807,96068.0,96067.0,0.15514709]
[1739028481011,0.21718804,96068.0,96067.0,0.15514709]
[1739028481389,0.21418804,96068.0,96067.0,0.15514709]
[1739028481816,0.21618804,96068.0,96067.0,0.124376]
[1739028482023,0.37232704,96068.0,96067.0,0.124376]
[1739028482228,0.36632704,96068.0,96067.0,0.15512604]
[1739028482483,0.36632704,96068.0,96067.0,0.124376]
[1739028482639,0.37032704,96068.0,96067.0,0.15512604]
[1739028482848,0.37032704,96068.0,96067.0,0.124376]
[1739028484932,0.46506383,96068.0,96067.0,0.124376]
[1739028485412,0.37032704,96068.0,96067.0,0.124376]
[1739028485613,0.37032704,96068.0,96067.0,0.15514066]
[1739028485816,0.40150023,96068.0,96067.0,0.15514066]
[1739028486373,0.40150023,96068.0,96067.0,0.15524756]
[1739028486760,0.40150023,96068.0,96067.0,0.1244829]
[1739028488651,0.40150023,96068.0,96067.0,0.15522768]
[1739028489170,0.40150023,96068.0,96067.0,0.1244829]
[1739028489936,0.40150023,96068.0,96067.0,0.15522768]
[1739028490529,0.40150023,96068.0,96067.0,0.1244829]
[1739028491955,0.24536123,96068.0,96067.0,0.1244829]
[1739028492156,0.24536123,96068.0,96067.0,0.15522768]
[1739028492512,0.40150023,96068.0,96067.0,0.15522768]
[1739028493049,0.24536123,96068.0,96067.0,0.15522768]
[1739028493263,0.24536123,96068.0,96067.0,0.31136868]
[1739028493891,0.21418804,96068.0,96067.0,0.31136868]
[1739028494302,0.21418804,96068.0,96067.0,0.15522768]
[1739028494854,0.21418804,96068.0,96067.0,0.31136868]
[1739028495631,0.21418804,96068.0,96067.0,0.15522768]
[1739028496035,0.24534773,96068.0,96067.0,0.15522768]
[1739028496378,0.24534773,96068.0,96067.0,0.31136868]
[1739028503570,0.24534773,96068.0,96067.0,0.41387233]
[1739028505289,0.24534773,96068.0,96067.0,0.31136868]
[1739028517144,0.24534773,96068.0,96067.0,0.41387233]
[1739028518005,0.24134773,96068.0,96067.0,0.41387233]
[1739028518341,0.23934773,96068.0,96067.0,0.41387233]
[1739028518739,0.20818804,96068.0,96067.0,0.41387233]
[1739028519076,0.21018804,96068.0,96067.0,0.41387233]
[1739028519479,0.19075997,96068.0,96067.0,0.41387233]
[1739028520328,0.19075997,96068.0,96067.0,0.42429615]
[1739028522564,0.19075997,96068.0,96067.0,0.41387233]
[1739028524214,0.2102681,96068.0,96067.0,0.41387233]
[1739028528404,0.2102681,96068.0,96067.0,0.36527233]
[1739028528628,0.2102681,96068.0,96067.0,0.26276868]
[1739028529213,0.24148564,96068.0,96067.0,0.26276868]
[1739028529414,0.24148564,96068.0,96067.0,0.18716868]
[1739028529843,0.24048564,96068.0,96067.0,0.18716868]
[1739028530047,0.24148564,96068.0,96067.0,0.18716868]
[1739028530875,0.24048564,96068.0,96067.0,0.18716868]
[1739028531080,0.24148564,96068.0,96067.0,0.18716868]
[1739028532475,0.24048564,96068.0,96067.0,0.18716868]
[1739028532737,0.24148564,96068.0,96067.0,0.18716868]
[1739028532910,0.24048564,96068.0,96067.0,0.18716868]
[1739028533075,0.24148564,96068.0,96067.0,0.18716868]
[1739028534715,0.24048564,96068.0,96067.0,0.18716868]
[1739028534987,0.24148564,96068.0,96067.0,0.18716868]
[1739028536461,0.24048564,96068.0,96067.0,0.18716868]
[1739028537575,0.23948564,96068.0,96067.0,0.18716868]
[1739028538000,0.24148564,96068.0,96067.0,0.18716868]
[1739028538150,0.24048564,96068.0,96067.0,0.18716868]
[1739028538356,0.23948564,96068.0,96067.0,0.18716868]
[1739028538580,0.24048564,96068.0,96067.0,0.18716868]
[1739028538754,0.24148564,96068.0,96067.0,0.18716868]
[1739028542184,0.24048564,96068.0,96067.0,0.18716868]
[1739028543545,0.24148564,96068.0,96067.0,0.18716868]
[1739028544009,0.24048564,96068.0,96067.0,0.18716868]
[1739028544169,0.24148564,96068.0,96067.0,0.18716868]
[1739028545188,0.24148564,96068.0,96067.0,0.28967233]
[1739028545394,0.24148564,96068.0,96067.0,0.41587233]
[1739028547610,0.2102681,96068.0,96067.0,0.41587233]
[1739028548221,0.19075997,96068.0,96067.0,0.41587233]
[1739028551065,0.18875997,96068.0,96067.0,0.41587233]
[1739028551494,0.18975997,96068.0,96067.0,0.41587233]
[1739028552228,0.19075997,96068.0,96067.0,0.41587233]
[1739028552823,0.19075997,96068.0,96059.0,0.208203]
[1739028552824,0.16,96064.0,96016.0,0.0793]
[1739028553153,0.306162,96054.0,96016.0,0.0793]
[1739028553355,0.35425514,96054.0,96053.0,0.09353242]
[1739028553937,0.37538011,96054.0,96053.0,0.09353242]
[1739028554420,0.40942983,96054.0,96053.0,0.09353242]
[1739028554908,0.51193348,96054.0,96053.0,0.09353242]
[1739028555111,0.62343713,96054.0,96053.0,0.09453242]
[1739028555669,0.62943713,96054.0,96053.0,0.09453242]
[1739028556315,0.62943713,96054.0,96053.0,0.00113559]
[1739028557042,0.64023832,96054.0,96053.0,0.00113559]
[1739028558328,0.82899829,96054.0,96053.0,0.00113559]
[1739028559906,0.79494857,96054.0,96053.0,0.00113559]
[1739028560107,0.82899829,96054.0,96053.0,0.00113559]
[1739028560446,0.82899829,96054.0,96053.0,0.00124239]
[1739028563580,0.156189,96037.0,96016.0,0.0793]
[1739028563823,0.44621023,96037.0,96016.0,0.0793]
[1739028564740,0.45121023,96037.0,96016.0,0.0793]
[1739028565159,0.60121023,96037.0,96016.0,0.0793]
[1739028565360,0.67640984,96037.0,96011.0,0.0002]
[1739028565596,0.77891349,96037.0,96011.0,0.0002]
[1739028566083,0.78591349,96037.0,96011.0,0.0002]
[1739028568166,0.80643093,96037.0,96011.0,0.0002]
[1739028568372,0.81692417,96037.0,96011.0,0.0002]
[1739028569577,0.80992417,96037.0,96011.0,0.0002]
[1739028569816,0.81892417,96037.0,96011.0,0.0002]
[1739028570081,0.81392417,96037.0,96011.0,0.0002]
[1739028570485,0.81992417,96037.0,96011.0,0.0002]
[1739028573137,0.306209,96025.0,96011.0,0.0002]
[1739028573342,0.40871265,96025.0,96011.0,0.0002]
[1739028574457,0.41271265,96025.0,96011.0,0.0002]
[1739028574634,0.41371265,96025.0,96011.0,0.0002]
[1739028575336,0.311209,96025.0,96011.0,0.0002]
[1739028575534,0.311209,96025.0,96021.0,0.0764]
[1739028575838,0.33594891,96025.0,96021.0,0.0764]
[1739028575998,0.311209,96025.0,96021.0,0.0764]
[1739028576377,0.32171722,96025.0,96021.0,0.0764]
[1739028579275,0.509128,96025.0,96021.0,0.0764]
[1739028584318,0.509128,96025.0,96024.0,0.0144674]
[1739028585817,0.6026956,96025.0,96024.0,0.0144674]
[1739028586139,0.509128,96025.0,96024.0,0.0144674]
[1739028591361,0.504128,96025.0,96024.0,0.0144674]
[1739028591918,0.519128,96025.0,96024.0,0.0144674]
[1739028592413,0.504128,96025.0,96024.0,0.0144674]
[1739028592750,0.513128,96025.0,96024.0,0.0144674]
[1739028592957,0.56351691,96025.0,96024.0,0.0144674]
[1739028593174,0.58303769,96025.0,96024.0,0.0144674]
[1739028593940,0.59003769,96025.0,96024.0,0.0144674]
[1739028594186,0.57403769,96025.0,96024.0,0.0144674]
[1739028594388,0.58103769,96025.0,96024.0,0.0144674]
[1739028594594,0.59003769,96025.0,96024.0,0.0144674]
[1739028594779,0.58303769,96025.0,96024.0,0.0144674]
[1739028594950,0.57403769,96025.0,96024.0,0.0144674]
[1739028595331,0.58303769,96025.0,96024.0,0.0144674]
[1739028595536,0.59003769,96025.0,96024.0,0.0144674]
[1739028600441,0.53964878,96025.0,96024.0,0.0144674]
[1739028603023,0.64215243,96025.0,96024.0,0.0144674]
[1739028603601,0.6734145,96025.0,96024.0,0.0144674]
[1739028609195,0.6734145,96025.0,95970.0,0.0001069]
[1739028609196,0.01,95972.0,95970.0,0.0001069]
[1739028609416,0.16,95971.0,95970.0,7.3e-07]
[1739028609621,0.326305,95966.0,95965.0,0.00518157]
[1739028610010,0.326305,95966.0,95929.0,0.0143606]
[1739028610011,0.156354,95936.0,95929.0,0.0143606]
[1739028610228,0.15,95947.0,95929.0,0.0143606]
[1739028610229,0.15,95941.0,95935.0,1.00045401]
[1739028610662,0.01952078,95940.0,95935.0,1.00045401]
[1739028611077,0.15,95936.0,95935.0,1.00045401]
[1739028611297,0.151,95936.0,95935.0,1.00045401]
[1739028611940,0.02052078,95936.0,95935.0,1.00045401]
[1739028612144,0.02052078,95936.0,95935.0,1.08365401]
[1739028612317,0.01952078,95936.0,95935.0,1.08365401]
[1739028612452,0.02052078,95936.0,95935.0,1.08365401]
[1739028612658,0.15,95944.0,95935.0,1.08365401]
[1739028613108,0.001,95940.0,95935.0,1.08365401]
[1739028613454,0.001,95940.0,95935.0,1.00045401]
[1739028613630,0.156348,95940.0,95935.0,1.00045401]
[1739028614358,0.01952078,95942.0,95935.0,1.00045401]
[1739028614710,0.001,95936.0,95935.0,1.00045401]
[1739028614946,0.001,95940.0,95935.0,1.00045401]
[1739028615203,0.22249918,95940.0,95935.0,1.00045401]
[1739028615424,0.18741078,95936.0,95935.0,1.02113875]
[1739028615971,0.06615218,95940.0,95935.0,1.02113875]
[1739028616368,0.001,95940.0,95935.0,1.02113875]
[1739028616984,0.10250365,95941.0,95935.0,1.02113875]
[1739028617328,0.001,95940.0,95935.0,1.02113875]
[1739028618168,0.002,95940.0,95935.0,1.02113875]
[1739028618590,0.001,95940.0,95935.0,1.02113875]
[1739028618788,0.18741078,95939.0,95935.0,1.02113875]
[1739028619988,0.001,95940.0,95935.0,1.02113875]
[1739028620194,0.02052078,95941.0,95935.0,1.02113875]
[1739028620626,0.001,95939.0,95935.0,1.02113875]
[1739028620846,0.001,95939.0,95935.0,1.17749375]
[1739028621051,0.001,95941.0,95935.0,1.17749375]
[1739028621265,0.01069844,95944.0,95935.0,1.17749375]
[1739028621465,0.001,95941.0,95935.0,1.17749375]
[1739028621669,0.001,95940.0,95935.0,1.17749375]
[1739028621817,0.001,95941.0,95935.0,1.17749375]
[1739028622199,0.001,95939.0,95935.0,1.02113875]
[1739028623039,0.001,95939.0,95935.0,1.02124565]
[1739028623652,0.002,95939.0,95935.0,1.02124565]
[1739028624126,0.001,95939.0,95935.0,1.02124565]
[1739028624374,0.002,95939.0,95935.0,1.02124565]
[1739028624954,0.15635,95938.0,95935.0,1.02124565]
[1739028625103,0.002,95939.0,95935.0,1.02070223]
[1739028626106,0.001,95939.0,95935.0,1.02070223]
[1739028626317,0.18741078,95938.0,95935.0,1.02070223]
[1739028627093,0.18841078,95938.0,95935.0,1.02070223]
[1739028627297,0.001,95938.0,95935.0,1.02070223]
[1739028627499,0.002,95938.0,95935.0,1.02070223]
[1739028628154,0.156354,95936.0,95935.0,1.02070223]
[1739028628354,0.25885765,95936.0,95935.0,1.02070223]
[1739028628582,0.40885765,95936.0,95935.0,1.02070223]
[1739028629133,0.42818604,95936.0,95935.0,1.02070223]
[1739028629457,0.42918604,95936.0,95935.0,1.02070223]
[1739028629655,0.51699029,95936.0,95935.0,1.02070223]
[1739028630287,0.70540107,95936.0,95935.0,1.02070223]
[1739028630674,0.70540107,95936.0,95912.0,0.204392]
[1739028630675,0.15,95919.0,95836.0,0.048]
[1739028630881,0.156476,95861.0,95838.0,0.09302376]
[1739028631094,0.156507,95842.0,95841.0,0.80604358]
[1739028631308,0.329507,95842.0,95841.0,0.8]
[1739028631521,0.306507,95842.0,95841.0,0.80045469]
[1739028631732,0.306507,95842.0,95841.0,0.81715813]
[1739028631937,0.329507,95842.0,95841.0,0.81715813]
[1739028632151,0.339507,95842.0,95841.0,0.81715813]
[1739028632361,1.4825,95842.0,95841.0,0.76926937]
[1739028632595,1.4825,95842.0,95838.0,0.09302376]
[1739028632596,0.517569,95842.0,95838.0,0.03634272]
[1739028632803,0.517569,95842.0,95807.0,0.02391609]
[1739028632804,0.156563,95808.0,95807.0,0.02391609]
[1739028633044,0.316563,95808.0,95807.0,0.02391609]
[1739028633265,0.339563,95808.0,95807.0,0.02391609]
[1739028633471,0.173,95808.0,95807.0,0.02391609]
[1739028633886,0.15,95808.0,95807.0,0.02391609]
[1739028634106,0.15145125,95808.0,95807.0,0.02391609]
[1739028634320,0.15245125,95808.0,95807.0,0.02391609]
[1739028634526,0.30801425,95808.0,95807.0,0.02391609]
[1739028634764,0.32001425,95808.0,95807.0,0.02391609]
[1739028634976,0.31001425,95808.0,95807.0,0.02391609]
[1739028635181,0.32001425,95808.0,95807.0,0.02342701]
[1739028635361,0.35333714,95808.0,95807.0,0.02342701]
[1739028635801,0.15,95805.0,95800.0,0.002178]
[1739028636006,0.306572,95802.0,95800.0,0.002178]
[1739028636234,0.329572,95802.0,95800.0,0.002178]
[1739028636442,0.339572,95802.0,95800.0,0.002178]
[1739028637089,0.329572,95802.0,95800.0,0.002178]
[1739028637287,0.42830625,95802.0,95800.0,0.002178]
[1739028637935,0.27273425,95802.0,95800.0,0.002178]
[1739028638150,0.27173425,95802.0,95800.0,0.002178]
[1739028638379,0.42830625,95802.0,95800.0,0.002178]
[1739028638771,0.27173425,95802.0,95800.0,0.002178]
[1739028639196,0.12173425,95802.0,95800.0,0.002178]
[1739028639441,0.0192306,95802.0,95800.0,0.002178]
[1739028639648,0.003,95802.0,95800.0,0.002178]
[1739028639846,0.002,95802.0,95801.0,0.01860833]
[1739028640100,0.00045125,95808.0,95801.0,0.17518133]
[1739028640292,0.10250365,95807.0,95802.0,0.156571]
[1739028640514,0.01029549,95806.0,95801.0,0.01860833]
[1739028640740,0.10250365,95805.0,95803.0,0.01554851]
[1739028640947,0.10250365,95805.0,95802.0,0.01554857]
[1739028641162,0.00045125,95808.0,95804.0,0.01554845]
[1739028641367,0.00045125,95808.0,95803.0,0.01553633]
[1739028641576,0.00045125,95808.0,95805.0,0.17210321]
[1739028641785,0.00045125,95808.0,95804.0,0.01553627]
[1739028641991,0.00045125,95808.0,95801.0,0.0030903]
[1739028641992,0.00045125,95808.0,95806.0,0.01553614]
[1739028642195,0.00045125,95808.0,95807.0,0.0756]
[1739028642421,0.00045125,95808.0,95807.0,0.14218371]
[1739028642841,0.0192306,95836.0,95807.0,0.14218371]
[1739028643045,0.01063076,95834.0,95807.0,0.14686131]
[1739028643300,0.001,95808.0,95807.0,0.30342531]
[1739028643502,0.002,95808.0,95807.0,0.15186131]
[1739028643709,0.001,95808.0,95807.0,0.14686131]
[1739028644122,0.001,95808.0,95807.0,0.15186131]
[1739028644324,0.15,95828.0,95807.0,0.14686131]
[1739028644630,0.15,95826.0,95807.0,0.15186131]
[1739028644837,0.001,95808.0,95807.0,0.30842531]
[1739028645556,0.002,95808.0,95807.0,0.30842531]
[1739028645765,0.001,95808.0,95807.0,0.30342531]
[1739028645989,0.01034166,95828.0,95807.0,0.14686131]
[1739028646187,0.15,95827.0,95816.0,0.156549]
[1739028646389,0.02525036,95826.0,95817.0,0.0222992]
[1739028646588,0.02525036,95826.0,95812.0,0.20874]
[1739028646796,0.15,95827.0,95813.0,0.02229944]
[1739028647633,0.15,95827.0,95812.0,0.156556]
[1739028647836,0.151,95827.0,95816.0,0.009]
[1739028648045,0.15961926,95827.0,95816.0,0.009]
[1739028648255,0.15961926,95827.0,95817.0,0.02225464]
[1739028648456,0.06465785,95826.0,95816.0,0.009]
[1739028648753,0.06565785,95826.0,95816.0,0.009]
[1739028648968,0.001,95826.0,95816.0,0.009]
[1739028649145,0.15961926,95827.0,95817.0,0.02225464]
[1739028649572,0.16061926,95827.0,95817.0,0.02225464]
[1739028649900,0.00961926,95827.0,95817.0,0.02225464]
[1739028650112,0.001,95827.0,95817.0,0.23098464]
[1739028650322,0.002,95827.0,95813.0,0.009]
[1739028650489,0.002,95827.0,95818.0,0.02400538]
[1739028650708,0.002,95827.0,95812.0,0.20874]
[1739028650907,0.003,95827.0,95819.0,0.02566514]
[1739028651112,0.003,95827.0,95817.0,0.165548]
[1739028651315,0.003,95827.0,95820.0,0.02562168]
[1739028651525,0.002,95827.0,95817.0,0.165548]
[1739028651761,0.002,95827.0,95821.0,0.02562162]
[1739028651762,0.001,95827.0,95821.0,0.02562162]
[1739028651970,0.001,95827.0,95822.0,0.02562155]
[1739028652172,0.001,95827.0,95817.0,0.156547]
[1739028652173,0.15857724,95832.0,95817.0,0.156547]
[1739028652379,0.04201022,95832.0,95818.0,0.0256218]
[1739028652582,0.001,95827.0,95816.0,0.156549]
[1739028652783,0.001,95827.0,95817.0,0.18216886]
[1739028652961,0.001,95827.0,95821.0,0.156541]
[1739028653159,0.001,95827.0,95822.0,0.02562155]
[1739028653415,0.001,95827.0,95800.0,0.00317841]
[1739028653416,0.001,95827.0,95823.0,0.156538]
[1739028653625,0.00857724,95832.0,95821.0,0.20872]
[1739028653829,0.00857724,95832.0,95824.0,0.02562143]
[1739028654031,0.001,95827.0,95823.0,0.208716]
[1739028654247,0.001,95827.0,95825.0,0.18215637]
[1739028654451,0.001,95827.0,95825.0,0.156535]
[1739028654654,0.002,95827.0,95826.0,0.02562131]
[1739028655240,0.001,95827.0,95826.0,0.02562131]
[1739028655448,0.0192306,95834.0,95826.0,0.02562131]
[1739028655654,0.001,95827.0,95826.0,0.18215431]
[1739028656155,0.001,95827.0,95826.0,0.26275431]
[1739028656361,0.001,95827.0,95826.0,0.10622131]
[1739028656511,0.0192306,95831.0,95826.0,0.26275431]